[Event "Portugal Open 2019"]
[Site "Lisbon"]
[Date "2019.02.09"]
[Round "9.36"]
[White "Fernandes, Miguel A. Murtinho"]
[Black "Sorensen, Hampus"]
[Result "1-0"]
[ECO "D31"]
[WhiteElo "2066"]
[BlackElo "2289"]
[Annotator "NA"]
[PlyCount "73"]
[EventDate "2019.01.25"]
[EventType "swiss"]
[EventCountry "POR"]
[SourceTitle "playchess.com"]
[Source "ChessBase"]
[SourceQuality "1"]
[TimeControl "5400+30"]

1. d4 {[%emt 0:00:00]} d5 {[%emt 0:00:00]} 2. c4 {[%emt 0:00:00]} e6 {[%emt 0:00:27]} 3. Nc3 {[%emt 0:00:00]} Bb4 {[%emt 0:00:07]} 4. Qa4+ {[%emt 0:00:00]} Nc6 {[%emt 0:00:07]} 5. Nf3 {[%emt 0:00:08]} Nf6 {[%emt 0:01:36]} 6. Bg5 {[%emt 0:00:50]} h6 {[%emt 0:03:29]} 7. Bd2 {[%emt 0:00:04]} O-O {[%emt 0:04:44]} 8. e3 {[%emt 0:00:07]} a6 {[%emt 0:04:26]} 9. Qc2 {[%emt 0:01:21]} dxc4 {[%emt 0:05:02]} 10. Bxc4 {[%emt 0:00:21]} Bd6 {[%emt 0:00:42]} 11. a3 {[%emt 0:02:55]} Qe7 {[%emt 0:04:17]} 12. O-O {[%emt 0:02:16]} e5 {[%emt 0:03:26]} 13. Nd5 {[%emt 0:10:00]} Nxd5 {[%emt 0:05:36]} 14. Bxd5 {[%emt 0:00:06]} exd4 {[%emt 0:01:55]} 15. exd4 {[%emt 0:00:37]} Qf6 {[%emt 0:04:18]} 16. Bxc6 {[%emt 0:10:02]} bxc6 {[%emt 0:00:20]} 17. Bb4 {[%emt 0:00:22]} Bf5 {[%emt 0:02:57]} 18. Qc3 {[%emt 0:00:56]} Be4 {[%emt 0:07:43]} 19. Ne5 {[%emt 0:04:23]} Rfd8 {[%emt 0:02:03]} 20. f3 {[%emt 0:04:39]} Bd5 {[%emt 0:00:34]} 21. f4 {[%emt 0:00:29]} Rab8 {[%emt 0:08:29]} 22. Rad1 {[%emt 0:07:28]} Qf5 {[%emt 0:04:48]} 23. Rde1 {[%emt 0:03:51]} Rb6 {[%emt 0:05:29]} 24. Rf2 {[%emt 0:08:03]} Rdb8 {[%emt 0:02:13]} 25. g4 {[%emt 0:06:34]} Qc8 {[%emt 0:01:17]} 26. f5 {[%emt 0:03:04]} Rxb4 {[%emt 0:08:32]} 27. axb4 {[%emt 0:00:08]} Bxb4 {[%emt 0:00:10]} 28. Qc1 {[%emt 0:00:42]} Bxe1 {[%emt 0:00:05]} 29. Qxe1 {[%emt 0:00:06]} Qb7 {[%emt 0:01:33]} 30. f6 {[%emt 0:02:35]} Qb4 {[%emt 0:03:38]} 31. Qe3 {[%emt 0:02:22]} Re8 {[%emt 0:05:55]} 32. fxg7 {[%emt 0:02:17]} Qd6 {[%emt 0:00:46]} 33. g5 {[%emt 0:04:35]} hxg5 {[%emt 0:07:48]} 34. Qxg5 {[%emt 0:00:18]} Be4 {[%emt 0:01:24]} 35. Qh5 {[%emt 0:03:42]} Kxg7 {[%emt 0:00:45]} 36. Qxf7+ {[%emt 0:00:45]} Kh6 {[%emt 0:00:02]} 37. Rf6+ {[%emt 0:02:29]} 1-0

[Event "Portugal Open 2019"]
[Site "Lisbon"]
[Date "2019.02.09"]
[Round "9.37"]
[White "Risting, Eivind Olav"]
[Black "Leao, Tiago Miguel Da Sil"]
[Result "1/2-1/2"]
[ECO "D45"]
[WhiteElo "2282"]
[BlackElo "2084"]
[Annotator "NA"]
[PlyCount "48"]
[EventDate "2019.01.25"]
[EventType "swiss"]
[EventCountry "POR"]
[SourceTitle "playchess.com"]
[Source "ChessBase"]
[SourceQuality "1"]
[TimeControl "5400+30"]

1. d4 {[%emt 0:00:00]} Nf6 {[%emt 0:00:51]} 2. c4 {[%emt 0:00:00]} e6 {[%emt 0:00:15]} 3. Nf3 {[%emt 0:00:30]} d5 {[%emt 0:00:06]} 4. Nc3 {[%emt 0:00:07]} c6 {[%emt 0:00:06]} 5. e3 {[%emt 0:00:10]} Nbd7 {[%emt 0:00:43]} 6. Qc2 {[%emt 0:00:21]} a6 {[%emt 0:06:52]} 7. b3 {[%emt 0:00:55]} Bd6 {[%emt 0:02:17]} 8. Bd3 {[%emt 0:03:09]} O-O {[%emt 0:02:40]} 9. O-O {[%emt 0:01:00]} h6 {[%emt 0:06:32]} 10. h3 {[%emt 0:09:37]} Qe7 {[%emt 0:04:53]} 11. c5 {[%emt 0:04:08]} Bc7 {[%emt 0:00:38]} 12. e4 {[%emt 0:00:38]} dxe4 {[%emt 0:22:33]} 13. Nxe4 {[%emt 0:00:09]} Nxe4 {[%emt 0:07:08]} 14. Bxe4 {[%emt 0:00:20]} f5 {[%emt 0:01:22]} 15. Bd3 {[%emt 0:00:27]} e5 {[%emt 0:00:28]} 16. Re1 {[%emt 0:15:36]} e4 {[%emt 0:01:22]} 17. Bc4+ {[%emt 0:00:32]} Kh8 {[%emt 0:01:30]} 18. Bb2 {[%emt 0:00:32]} Qd8 {[%emt 0:03:53]} 19. Nd2 {[%emt 0:02:57]} Nf6 {[%emt 0:01:10]} 20. f3 {[%emt 0:03:44]} Bg3 {[%emt 0:08:18]} 21. Re2 {[%emt 0:03:07]} Nd5 {[%emt 0:00:38]} 22. fxe4 {[%emt 0:13:31]} Nf4 {[%emt 0:01:38]} 23. Nf1 {[%emt 0:10:22]} Qg5 {[%emt 0:05:48]} 24. e5 {[%emt 0:05:15]} Nxe2+ {[%emt 0:10:41]} 1/2-1/2

[Event "Portugal Open 2019"]
[Site "Lisbon"]
[Date "2019.02.09"]
[Round "9.38"]
[White "Aguera Naredo, Javier"]
[Black "Saltvedt, Martin"]
[Result "1/2-1/2"]
[ECO "B36"]
[WhiteElo "2346"]
[BlackElo "2095"]
[Annotator "NA"]
[PlyCount "64"]
[EventDate "2019.01.25"]
[EventType "swiss"]
[EventCountry "POR"]
[SourceTitle "playchess.com"]
[Source "ChessBase"]
[SourceQuality "1"]
[TimeControl "5400+30"]

1. e4 {[%emt 0:00:24]} c5 {[%emt 0:00:00]} 2. Nf3 {[%emt 0:00:12]} Nc6 {[%emt 0:00:16]} 3. d4 {[%emt 0:00:06]} cxd4 {[%emt 0:00:05]} 4. Nxd4 {[%emt 0:00:03]} g6 {[%emt 0:00:16]} 5. c4 {[%emt 0:00:08]} Nf6 {[%emt 0:01:00]} 6. Nc3 {[%emt 0:00:08]} Bg7 {[%emt 0:00:51]} 7. Be3 {[%emt 0:00:09]} O-O {[%emt 0:02:44]} 8. Be2 {[%emt 0:00:11]} d6 {[%emt 0:00:17]} 9. Qd2 {[%emt 0:00:30]} a5 {[%emt 0:00:50]} 10. Rd1 {[%emt 0:01:57]} Ng4 {[%emt 0:05:39]} 11. Bxg4 {[%emt 0:00:10]} Bxg4 {[%emt 0:00:05]} 12. f3 {[%emt 0:00:07]} Be6 {[%emt 0:00:41]} 13. Nxe6 {[%emt 0:01:15]} fxe6 {[%emt 0:00:13]} 14. Bh6 {[%emt 0:00:42]} Ne5 {[%emt 0:03:18]} 15. Bxg7 {[%emt 0:00:56]} Kxg7 {[%emt 0:00:48]} 16. Qd4 {[%emt 0:00:16]} Qc8 {[%emt 0:09:33]} 17. b3 {[%emt 0:00:42]} Rf6 {[%emt 0:05:23]} 18. Na4 {[%emt 0:02:48]} Ra6 {[%emt 0:04:55]} 19. O-O {[%emt 0:02:05]} Nc6 {[%emt 0:13:37]} 20. Qe3 {[%emt 0:01:38]} Qb8 {[%emt 0:04:40]} 21. c5 {[%emt 0:03:41]} e5 {[%emt 0:01:19]} 22. Nb6 {[%emt 0:03:13]} Rf7 {[%emt 0:00:41]} 23. Kh1 {[%emt 0:05:47]} Nd4 {[%emt 0:03:56]} 24. Rc1 {[%emt 0:00:44]} Qd8 {[%emt 0:05:20]} 25. Na4 {[%emt 0:02:22]} Rc6 {[%emt 0:04:41]} 26. cxd6 {[%emt 0:00:26]} exd6 {[%emt 0:02:06]} 27. Nc3 {[%emt 0:00:25]} Rfc7 {[%emt 0:06:01]} 28. Nd5 {[%emt 0:00:21]} Rxc1 {[%emt 0:00:21]} 29. Rxc1 {[%emt 0:00:04]} Rxc1+ {[%emt 0:01:12]} 30. Qxc1 {[%emt 0:00:06]} Qh4 {[%emt 0:00:06]} 31. Qe3 {[%emt 0:01:56]} Nc2 {[%emt 0:02:29]} 32. Qd2 {[%emt 0:00:37]} Nd4 {[%emt 0:07:16]} 1/2-1/2

[Event "Portugal Open 2019"]
[Site "Lisbon"]
[Date "2019.02.09"]
[Round "9.39"]
[White "Maloberti, David"]
[Black "Bubalovic, Davorin"]
[Result "1-0"]
[ECO "E91"]
[WhiteElo "2121"]
[BlackElo "2249"]
[Annotator "NA"]
[PlyCount "127"]
[EventDate "2019.01.25"]
[EventType "swiss"]
[EventCountry "POR"]
[SourceTitle "playchess.com"]
[Source "ChessBase"]
[SourceQuality "1"]
[TimeControl "5400+30"]

1. d4 {[%emt 0:00:00]} Nf6 {[%emt 0:00:50]} 2. c4 {[%emt 0:00:00]} g6 {[%emt 0:00:05]} 3. Nc3 {[%emt 0:00:00]} Bg7 {[%emt 0:00:02]} 4. e4 {[%emt 0:00:00]} d6 {[%emt 0:00:05]} 5. Nf3 {[%emt 0:00:00]} O-O {[%emt 0:00:07]} 6. Be2 {[%emt 0:00:00]} Nbd7 {[%emt 0:00:11]} 7. O-O {[%emt 0:01:22]} e5 {[%emt 0:00:09]} 8. Be3 {[%emt 0:00:38]} Ng4 {[%emt 0:00:31]} 9. Bg5 {[%emt 0:00:15]} Bf6 {[%emt 0:01:33]} 10. Bxf6 {[%emt 0:01:55]} Ngxf6 {[%emt 0:00:02]} 11. Qd2 {[%emt 0:04:49]} exd4 {[%emt 0:08:32]} 12. Nxd4 {[%emt 0:02:04]} Nc5 {[%emt 0:01:44]} 13. f3 {[%emt 0:00:30]} a5 {[%emt 0:01:28]} 14. Rfd1 {[%emt 0:06:33]} Bd7 {[%emt 0:04:45]} 15. Ndb5 {[%emt 0:04:36]} Re8 {[%emt 0:05:08]} 16. Nd5 {[%emt 0:03:41]} Bxb5 {[%emt 0:05:24]} 17. Nxf6+ {[%emt 0:03:14]} Qxf6 {[%emt 0:00:03]} 18. cxb5 {[%emt 0:00:10]} a4 {[%emt 0:08:46]} 19. Qd4 {[%emt 0:03:06]} Kg7 {[%emt 0:01:16]} 20. Qxf6+ {[%emt 0:07:13]} Kxf6 {[%emt 0:00:01]} 21. b6 {[%emt 0:00:08]} cxb6 {[%emt 0:04:08]} 22. Rxd6+ {[%emt 0:00:34]} Re6 {[%emt 0:00:20]} 23. Rad1 {[%emt 0:10:51]} Ke7 {[%emt 0:04:38]} 24. R6d4 {[%emt 0:01:02]} Ra5 {[%emt 0:05:29]} 25. R1d2 {[%emt 0:08:02]} h6 {[%emt 0:04:02]} 26. Kf2 {[%emt 0:03:31]} g5 {[%emt 0:00:49]} 27. Rd5 {[%emt 0:10:08]} Rc6 {[%emt 0:06:28]} 28. R5d4 {[%emt 0:00:05]} Re6 {[%emt 0:01:44]} 29. g4 {[%emt 0:02:13]} Rc6 {[%emt 0:02:52]} 30. Rb4 {[%emt 0:03:01]} Ra8 {[%emt 0:02:55]} 31. Bb5 {[%emt 0:01:49]} Rd6 {[%emt 0:01:21]} 32. Rxd6 {[%emt 0:03:02]} Kxd6 {[%emt 0:00:01]} 33. Ke3 {[%emt 0:01:09]} f6 {[%emt 0:02:05]} 34. Rd4+ {[%emt 0:04:25]} Kc7 {[%emt 0:02:53]} 35. Rd5 {[%emt 0:03:50]} Ra5 {[%emt 0:01:46]} 36. Be8 {[%emt 0:00:43]} Ra8 {[%emt 0:00:01]} 37. Bb5 {[%emt 0:00:59]} Ra5 {[%emt 0:00:25]} 38. Be8 {[%emt 0:04:15]} Ra8 {[%emt 0:00:01]} 39. Bf7 {[%emt 0:00:11]} Rf8 {[%emt 0:00:48]} 40. Bg6 {[%emt 0:00:21]} Rd8 {[%emt 0:01:22]} 41. Rxd8 {[%emt 0:04:03]} Kxd8 {[%emt 0:00:00]} 42. Kd4 {[%emt 0:01:57]} Nd7 {[%emt 0:01:48]} 43. Ke3 {[%emt 0:02:17]} Ne5 {[%emt 0:00:36]} 44. Bh7 {[%emt 0:00:04]} Nc4+ {[%emt 0:04:30]} 45. Kd4 {[%emt 0:00:04]} Nxb2 {[%emt 0:00:23]} 46. e5 {[%emt 0:00:11]} Ke7 {[%emt 0:03:21]} 47. exf6+ {[%emt 0:00:13]} Kxf6 {[%emt 0:00:01]} 48. Be4 {[%emt 0:00:36]} a3 {[%emt 0:02:22]} 49. Bxb7 {[%emt 0:00:09]} Na4 {[%emt 0:00:34]} 50. Bd5 {[%emt 0:00:26]} Nc5 {[%emt 0:01:02]} 51. Bc6 {[%emt 0:01:06]} Nb3+ {[%emt 0:03:21]} 52. Kc3 {[%emt 0:00:24]} Nc1 {[%emt 0:01:52]} 53. Bd5 {[%emt 0:00:07]} Ne2+ {[%emt 0:04:28]} 54. Kb4 {[%emt 0:00:08]} Ke5 {[%emt 0:01:01]} 55. Bb7 {[%emt 0:00:42]} Nd4 {[%emt 0:03:32]} 56. Kxa3 {[%emt 0:00:02]} Kf4 {[%emt 0:00:20]} 57. Kb4 {[%emt 0:00:17]} Nxf3 {[%emt 0:00:01]} 58. Kb5 {[%emt 0:00:45]} Nxh2 {[%emt 0:00:10]} 59. Kxb6 {[%emt 0:00:05]} Nxg4 {[%emt 0:00:07]} 60. a4 {[%emt 0:00:12]} Ne5 {[%emt 0:01:54]} 61. Kb5 {[%emt 0:01:48]} Nf7 {[%emt 0:00:34]} 62. Kc5 {[%emt 0:01:22]} Ne5 {[%emt 0:01:25]} 63. a5 {[%emt 0:00:29]} Nd3+ {[%emt 0:00:24]} 64. Kb5 {[%emt 0:00:13]} 1-0

[Event "Portugal Open 2019"]
[Site "Lisbon"]
[Date "2019.02.09"]
[Round "9.40"]
[White "Nordquelle, Daniel"]
[Black "Barbier, Wim"]
[Result "1-0"]
[ECO "B07"]
[WhiteElo "2235"]
[BlackElo "2086"]
[Annotator "NA"]
[PlyCount "41"]
[EventDate "2019.01.25"]
[EventType "swiss"]
[EventCountry "POR"]
[SourceTitle "playchess.com"]
[Source "ChessBase"]
[SourceQuality "1"]
[TimeControl "5400+30"]

1. e4 {[%emt 0:00:00]} d6 {[%emt 0:00:00]} 2. d4 {[%emt 0:00:00]} Nf6 {[%emt 0:00:00]} 3. Nc3 {[%emt 0:00:00]} e5 {[%emt 0:00:00]} 4. Nge2 {[%emt 0:00:00]} Be7 {[%emt 0:01:11]} 5. h3 {[%emt 0:00:01]} c6 {[%emt 0:00:59]} 6. g4 {[%emt 0:00:16]} exd4 {[%emt 0:03:03]} 7. Nxd4 {[%emt 0:00:25]} d5 {[%emt 0:00:23]} 8. e5 {[%emt 0:00:23]} Ne4 {[%emt 0:00:53]} 9. Nxe4 {[%emt 0:00:27]} dxe4 {[%emt 0:00:04]} 10. Bg2 {[%emt 0:01:19]} Qa5+ {[%emt 0:07:24]} 11. Bd2 {[%emt 0:00:08]} Qxe5 {[%emt 0:00:10]} 12. Bc3 {[%emt 0:05:04]} Qg5 {[%emt 0:02:23]} 13. Bxe4 {[%emt 0:03:38]} h5 {[%emt 0:02:22]} 14. Rg1 {[%emt 0:04:57]} hxg4 {[%emt 0:01:00]} 15. hxg4 {[%emt 0:00:06]} Na6 {[%emt 0:04:35]} 16. Nxc6 {[%emt 0:25:05]} Bc5 {[%emt 0:14:48]} 17. Qf3 {[%emt 0:31:51]} Rh2 {[%emt 0:08:56]} 18. Nd4 {[%emt 0:03:43]} Kf8 {[%emt 0:01:04]} 19. Qg3 {[%emt 0:04:57]} Rh4 {[%emt 0:02:44]} 20. Nf3 {[%emt 0:03:34]} Qxg4 {[%emt 0:00:32]} 21. Qxh4 {[%emt 0:00:17]} 1-0